Cogmind - Beta 16 @@@ ROGUE MODE // 2025.12.18 @ 23:53:52 Player: War__Prophet Result: Destroyed by S-10 Pest with Light Assault Rifle Performance ------------- Evolutions (2) 1000 Regions Visited (4) 800 Robots Destroyed (8) 40 Value Destroyed (337) 337 Prototype IDs (0) 0 Alien Tech Used (0) 0 Bonus (670) 670 TOTAL SCORE: 2847 Bonus ------- Pacifist 470 Entered Garrisons 200 Cogmind --------- Core Integrity 0/550 Matter 45/300 Energy 100/100 System Corruption 1% Temperature Cool (0) Movement Core (50) Location -8/Garrison Parts ------- > --- POWER (1) -------- (None) > --- PROPULSION (6) --- (None) > --- UTILITY (2) ------ (None) > --- WEAPON (2) ------- (None) > --- INVENTORY (5) ---- Ion Engine Light Ion Engine Light Deuterium Engine Light Deuterium Engine Advanced Weight Redist. System Peak State ------------ > --- POWER ------------ Light Nuclear Core > --- PROPULSION ------- Gravmag System Gravmag System Gravmag System Gravmag System > --- UTILITY ---------- Heat Sink Medium Storage Unit > --- WEAPON ----------- Heavy Assault Rifle Assault Cannon > --- INVENTORY -------- Ion Engine Light Ion Engine Light Deuterium Engine Light Deuterium Engine Light Treads Light Treads Light Treads Light Treads Advanced Weight Redist. System Advanced Weight Redist. System [Rating: 27] Favorites ----------- Power Light Nuclear Core Engine Ion Engine Power Core Light Nuclear Core Propulsion Light Treads Treads Light Treads Leg Aluminum Leg Wheel Wheel Hover Unit Gravmag System Flight Unit Flight Unit Utility Medium Storage Unit Device Heat Sink Storage Medium Storage Unit Weapon Heavy Assault Rifle Ballistic Gun Heavy Assault Rifle Ballistic Cannon Assault Cannon Special Weapon Mining Laser Build | -11 -10 -9 -8 -8 ------- Run | Yrd Mat Mat Mat Gar Slots Evolved 4 | . . 2 2 . Power . | . . . . . Propulsion 4 | . . 2 2 . Utility . | . . . . . Weapon . | . . . . . Parts Attached 27 | 5 2 4 15 1 Power 3 | 1 . . 2 . Engine 2 | 1 . . 1 . Core 1 | . . . 1 . Reactor . | . . . . . Propulsion 15 | 2 2 2 9 . Treads 5 | . . . 5 . Leg 2 | . . 2 . . Wheel 2 | 2 . . . . Hover 4 | . . . 4 . Flight 2 | . 2 . . . Utility 4 | 1 . . 2 1 Device 2 | . . . 1 1 Storage 2 | 1 . . 1 . Processor . | . . . . . Hackware . | . . . . . Protection . | . . . . . Artifact . | . . . . . Weapon 5 | 1 . 2 2 . Energy Gun . | . . . . . Energy Cannon . | . . . . . Ballistic Gun 2 | 1 . . 1 . Ballistic Cannon 1 | . . . 1 . Launcher . | . . . . . Special Weapon 2 | . . 2 . . Impact Weapon . | . . . . . Slashing Weapon . | . . . . . Piercing Weapon . | . . . . . Special Melee Weapon . | . . . . . Unidentified Prototypes . | . . . . . Parts Lost 11 | . . 4 1 6 Power 1 | . . . . 1 Propulsion 5 | . . 2 1 2 Utility 1 | . . . . 1 Weapon 4 | . . 2 . 2 Highest Loss Streak 3 | . . 3 1 3 To Critical Strikes . | . . . . . Average Backups 3 | . 1 2 4 5 Power 2 | . 1 2 3 4 Propulsion . | . . . . . Utility 1 | . . . 1 1 Weapon . | . . . . . Tool/Special . | . . . . . Unused Backups 3 | . . . . 3 Power 2 | . . . . 2 Propulsion . | . . . . . Utility 1 | . . . . 1 Weapon . | . . . . . Tool/Special . | . . . . . Average Slot Usage (%) 50 | . 65 22 54 51 Engine 2 | . 11 . . . Core 3 | . . . 5 6 Treads 7 | . . . 14 . Leg 2 | . . 10 1 . Wheel 3 | . 20 . . . Hover 5 | . . . 3 22 Flight 1 | . 6 4 . . Device 4 | . . . 7 4 Storage 7 | . 14 2 7 8 Ballistic Gun 7 | . 14 2 7 7 Ballistic Cannon 4 | . . . 7 2 Peak Build Rating 27 | 5 5 4 27 27 Average Rating 9 | 3 4 1 11 16 On Entrance 7 | . 5 4 1 27 Avg Prop Armor Cover (%) . | . . . . . Naked Turns 23 | . . 7 . 16 Heaviest Build 24 | 11 11 6 24 24 Greatest Support 100 | 20 20 20 100 36 Greatest Overweight (x) 7 | . 1 1 7 3 Average Overweight (x) . | . . . . . Largest Inventory Capacity 10 | 8 8 8 10 10 Average Capacity 8 | 6 8 5 9 9 Most Carried 10 | 1 3 3 10 6 Average Carried 3 | . 1 2 4 5 Final Capacity 10 | 8 8 5 10 5 Final Carried 6 | 1 2 3 6 5 Class Distribution -------------------- 88% | Mutant 11% | Scavenger-Mutant Dominant Class ---------------- Mutant | -10/Materials Mutant | -9/Materials Mutant | -8/Materials Mutant | -8/Garrison Resources | -11 -10 -9 -8 -8 ----------- Run | Yrd Mat Mat Mat Gar Matter Collected 392 | 236 . . 156 . Remotely . | . . . . . Salvage Created 337 | . . . 337 . Parts 20 | . . . 20 . Haulers Intercepted 1 | . . . 1 . Recyclers Shooed . | . . . . . Parts Field Recycled . | . . . . . Retrieved Matter . | . . . . . Parts Self-Destructed . | . . . . . Prevented . | . . . . . Parts Restored . | . . . . . Kills | -11 -10 -9 -8 -8 ------- Run | Yrd Mat Mat Mat Gar Combat Hostiles Destroyed 7 | . . . 7 . Guns 1 | . . . 1 . Cannons 6 | . . . 6 . Classes Destroyed 3 | . . . 3 . Hauler 1 | . . . 1 . Sentry 5 | . . . 5 . Hunter 2 | . . . 2 . Best Kill Streak 2 | . . . 2 . Combat Bots Only 2 | . . . 2 . Max Kills in Single Turn 1 | . . . 1 . Gunslinging . | . . . . . Exploded . | . . . . . Melee . | . . . . . Uniques/NPCs Destroyed . | . . . . . Combat | -11 -10 -9 -8 -8 -------- Run | Yrd Mat Mat Mat Gar Hostile Shots Fired 206 | . 16 41 45 104 Missed 64 | . 4 7 17 36 Hits 142 | . 12 34 28 68 Melee 15 | . . . . 15 Projectile 127 | . 12 34 28 53 AOE 1 | . . . . 1 Critical Strikes 12 | . . 1 1 10 Damage Taken 1965 | . 153 477 431 904 Core 773 | . 60 160 82 471 Absorbed by Shields . | . . . . . Core Remaining (%) 78 | 100 76 60 . . Volleys Fired 39 | . 3 1 25 10 Largest 2 | . 1 2 2 2 Hottest 200 | . 20 200 60 60 Shots Fired 66 | . 3 2 47 14 Gun 35 | . 3 . 22 10 Cannon 29 | . . . 25 4 Launcher . | . . . . . Special 2 | . . 2 . . Kinetic 64 | . 3 . 47 14 Thermal 2 | . . 2 . . Explosive . | . . . . . Electromagnetic . | . . . . . Robot Hit Streak 6 | . 1 3 6 2 Robot Miss Streak 3 | . 1 . 3 3 Penetration Max . | . . . . . Secondary Targets . | . . . . . Shots Hit Robots 39 | . 2 2 29 6 Core Hits 16 | . 2 . 12 2 Critical Kills . | . . . . . Critical Parts Destroyed . | . . . . . Critical Strikes 1 | . . . 1 . Blast 1 | . . . 1 . Melee Attacks . | . . . . . Impact . | . . . . . Slashing . | . . . . . Piercing . | . . . . . Sneak Attacks . | . . . . . Combat Hostiles . | . . . . . Follow-up Attacks . | . . . . . Damage Inflicted 727 | . 13 50 574 90 Guns 230 | . 13 . 168 49 Cannons 436 | . . . 401 35 Explosions . | . . . . . Melee . | . . . . . Ramming 13 | . . 2 5 6 Kinetic 666 | . 13 . 569 84 Thermal 48 | . . 48 . . Explosive . | . . . . . Electromagnetic . | . . . . . Impact . | . . . . . Slashing . | . . . . . Piercing . | . . . . . Highest Corruption 1 | . . . . 1 Average Corruption 1 | . . . . 1 Corruption Purged . | . . . . . Corruption Blocked . | . . . . . Overload Shots . | . . . . . Overflow Damage . | . . . . . Projectiles . | . . . . . Explosions . | . . . . . Melee . | . . . . . Knockbacks 3 | . . . 3 . Impact . | . . . . . Kinetic 3 | . . . 3 . Secondary . | . . . . . Self-Inflicted Damage 6 | . . 1 2 3 Shots . | . . . . . Rammed 3 | . . 1 1 1 Targets Rammed 3 | . . 1 1 1 Kicked . | . . . . . Crushed . | . . . . . Highest Temperature 27 | . . 27 13 3 Average Temperature 12 | . . 13 13 3 Received Heat Transfer 507 | . 90 174 117 126 Siege Activations . | . . . . . Martial Activations . | . . . . . Shielding Activations . | . . . . . Robots Disrupted . | . . . . . Combat Hostiles . | . . . . . Robots Corrupted . | . . . . . Combat Hostiles . | . . . . . Parts Fried . | . . . . . Impact Corruptions . | . . . . . Robots Melted . | . . . . . Combat Hostiles . | . . . . . Parts Melted . | . . . . . Heat Transferred 100 | . . 100 . . Parts Sabotaged . | . . . . . Parts Stolen . | . . . . . Parts Stripped . | . . . . . Power Chain Reactions . | . . . . . Alert | -11 -10 -9 -8 -8 ------- Run | Yrd Mat Mat Mat Gar Maximum Alert Level . | . . . . . Low Security (%) 100 | 100 100 100 100 100 Level 1 . | . . . . . Level 2 . | . . . . . Level 3 . | . . . . . Level 4 . | . . . . . Level 5 . | . . . . . High Security . | . . . . . Max Security . | . . . . . Peak Influence 90 | . 30 45 88 90 Initial 40 | . . 8 18 40 Average 30 | . 5 4 40 72 Influence Increases 423 | . 30 60 223 110 Destroy 0b10 Robot/C 140 | . . . 140 . Destroy 0b10 Robot/NC 5 | . . . 5 . Destroy Leader 72 | . . . 72 . Successful Hack 4 | . . . 4 . Anti-Garrison Action 50 | . . . . 50 Destroy Structure 2 | . . . 2 . Partial Spotted 15 | . . 15 . . Lose Combat Pursuer 135 | . 30 45 . 60 Influence Decreases 333 | . 10 35 206 82 Entered New Map 61 | . . 12 27 22 Time Decay 201 | . 10 13 178 . Lost Part 71 | . . 10 1 60 Squads Dispatched 4 | . . 2 2 . Investigation 2 | . . 2 . . Extermination . | . . . . . Reinforcement 2 | . . . 2 . Assault . | . . . . . Garrison . | . . . . . Intercept . | . . . . . Searches Triggered . | . . . . . Construction Impeded . | . . . . . Haulers Reinforced . | . . . . . Active Scanning Responses . | . . . . . Cargo Convoy Interrupts . | . . . . . Stealth | -11 -10 -9 -8 -8 --------- Run | Yrd Mat Mat Mat Gar Distress Signals 3 | . . . 3 . Communications Jammed . | . . . . . Distress Signals . | . . . . . Times Spotted 38 | . 4 6 15 13 Peak Tracking Total 12 | . 2 7 7 12 Tactical Retreats 4 | . 1 1 . 2 Traps | -11 -10 -9 -8 -8 ------- Run | Yrd Mat Mat Mat Gar Traps Triggered 3 | . . 2 . 1 Indirectly . | . . . . . Trap Hack Attempts . | . . . . . Triggered . | . . . . . Disarmed . | . . . . . Reprogrammed . | . . . . . Reused . | . . . . . Traps Extracted . | . . . . . Installed . | . . . . . Triggered . | . . . . . Machines | -11 -10 -9 -8 -8 ---------- Run | Yrd Mat Mat Mat Gar Machines Disabled . | . . . . . Max in Single Turn . | . . . . . Machines Repaired . | . . . . . Machines Dismantled . | . . . . . Machines Sabotaged . | . . . . . Overloaded Fab Kills . | . . . . . Hacking | -11 -10 -9 -8 -8 --------- Run | Yrd Mat Mat Mat Gar Machines Accessed 2 | . . . 1 1 Terminals 1 | . . . . 1 Fabricators . | . . . . . Repair Stations . | . . . . . Recycling Units . | . . . . . Scanalyzers . | . . . . . Garrison Access 1 | . . . 1 . Total Hacks 4 | . . . 2 2 Successful 1 | . . . 1 . Failed 3 | . . . 1 2 Catastrophic 2 | . . . . 2 Database Lockouts . | . . . . . Manual . | . . . . . Terminals 2 | . . . . 2 Fabricators . | . . . . . Repair Stations . | . . . . . Recycling Units . | . . . . . Scanalyzers . | . . . . . Garrison Access 2 | . . . 2 . Terminal Hacks . | . . . . . Fabricator Hacks . | . . . . . Repair Station Hacks . | . . . . . Recycling Unit Hacks . | . . . . . Scanalyzer . | . . . . . Garrison Access Hacks 1 | . . . 1 . Unlock Access 1 | . . . 1 . Unauthorized Hacks . | . . . . . Terminals . | . . . . . Fabricators . | . . . . . Repair Stations . | . . . . . Recycling Units . | . . . . . Scanalyzers . | . . . . . Garrison Access . | . . . . . Data Cores Recovered . | . . . . . Used . | . . . . . Hacking Detections 1 | . . . . 1 Full Trace Events 1 | . . . . 1 Feedback Events 1 | . . . . 1 Corruption 1 | . . . . 1 Feedback Blocked . | . . . . . Robot Schematics Acquired . | . . . . . Robots Built . | . . . . . Authchips . | . . . . . Time . | . . . . . Total Robot Build Rating . | . . . . . Part Schematics Acquired . | . . . . . Parts Built . | . . . . . Authchips . | . . . . . Time . | . . . . . Total Part Build Rating . | . . . . . Part Studies Acquired . | . . . . . Parts Repaired . | . . . . . Time . | . . . . . Parts Recycled . | . . . . . Recycled Matter . | . . . . . Retrieved Matter . | . . . . . Retrieved Components . | . . . . . Parts Scanalyzed . | . . . . . Part Schematics Acquired . | . . . . . Parts Damaged . | . . . . . Bothacking | -11 -10 -9 -8 -8 ------------ Run | Yrd Mat Mat Mat Gar Used RIF Installer . | . . . . . Robots Hacked . | . . . . . Non-combat . | . . . . . Combat . | . . . . . Robot Hacks Applied . | . . . . . Relay Couplers Released . | . . . . . Fabnet Peak Effective % . | . . . . . Robots Rewired . | . . . . . Allies Hacked . | . . . . . Hacks Repelled . | . . . . . Allies | -11 -10 -9 -8 -8 -------- Run | Yrd Mat Mat Mat Gar Total Allies . | . . . . . Largest Group . | . . . . . Highest-Rated Group . | . . . . . Highest-Rated Ally . | . . . . . Total Orders . | . . . . . Ally Attacks . | . . . . . Total Damage . | . . . . . Kills . | . . . . . Allies Corrupted . | . . . . . Allies Melted . | . . . . . Intel | -11 -10 -9 -8 -8 ------- Run | Yrd Mat Mat Mat Gar Active Infowar (turns) . | . . . . . Robot Analysis Total . | . . . . . Derelict Logs Recovered . | . . . . . Drone Launches . | . . . . . Drone Recoveries . | . . . . . Exploration | -11 -10 -9 -8 -8 ------------- Run | Yrd Mat Mat Mat Gar Turns Passed 836 | 38 135 152 390 121 Spaces Moved 732 | 38 196 139 211 148 Core 62 | 3 . 17 7 35 Treads 118 | . . . 118 . Legs 116 | . . 80 36 . Wheels 152 | 35 117 . . . Hover 163 | . . . 50 113 Flight 121 | . 79 42 . . Fastest Speed 37 | 50 37 37 48 48 Average Speed 89 | 77 63 94 135 56 Slowest Speed 400 | 80 120 120 400 200 Overloaded Moves . | . . . . . Propulsion Burnouts . | . . . . . Robots Hopped 4 | . 3 1 . . Potential Cave-ins . | . . . . . Cave-ins Triggered . | . . . . . Exploration Rate (%) 26 | 3 32 24 28 43 Regions Visited 4 Branch Regions . Pre-discovered Areas . | . . . . . Known Exits Taken 1 | . . . 1 . Unknown Exits Taken 3 | 1 1 1 . . Scrap Searched . | . . . . . Spaces Dug . | . . . . . Terrain Destroyed 2 | . . . 2 . Melee . | . . . . . Projectile 2 | . . . 2 . AOE . | . . . . . Terrain Rammed . | . . . . . Walls Destroyed . | . . . . . Machines Disabled . | . . . . . Actions | -11 -10 -9 -8 -8 --------- Run | Yrd Mat Mat Mat Gar Total 830 | 43 202 150 264 171 Wait 6 | . . 6 . . Move 720 | 37 189 136 210 148 Hop 4 | . 3 1 . . Pick Up 5 | 1 . 1 3 . Fast Attach 25 | 5 2 4 14 . Attach 2 | . . . 1 1 Detach 8 | . 3 . 5 . Swap . | . . . . . Drop 8 | . 2 . 5 1 Fire 39 | . 3 1 25 10 Melee . | . . . . . Ram 3 | . . 1 1 1 Kick . | . . . . . Crush . | . . . . . Escape Stasis 10 | . . . . 10 Rewire . | . . . . . Trap . | . . . . . Miscellaneous . | . . . . . Route ------- -11/Scrapyard -10/Materials -9/Materials -8/Materials -8/Garrison (discovered 1 exit: [*Mat]) History --------- Turn | Location | Event 9 | -11/Scrapyard | Discovered new exit (range 16) 39 | -11/Scrapyard | Entered Materials 169 | -10/Materials | Discovered new exit (range 11) 174 | -10/Materials | Entered another Materials area 174 | -9/Materials | Evolved 2 slots: Propulsion x2 204 | -9/Materials | Released all parts (3) 284 | -9/Materials | Lost 3 parts (1n2w) 308 | -9/Materials | Discovered new exit (range 16) 315 | -9/Materials | Build established: Mutant 326 | -9/Materials | Entered another Materials area 326 | -8/Materials | Evolved 2 slots: Propulsion x2 715 | -8/Materials | Identified exit to Garrison 716 | -8/Materials | Entered Garrison 731 | -8/Garrison | Triggered checkpoint 781 | -8/Garrison | Lost 3 parts (1n1u1w) 794 | -8/Garrison | Triggered checkpoint 795 | -8/Garrison | Triggered checkpoint 798 | -8/Garrison | Triggered checkpoint 813 | -8/Garrison | Core integrity fell below 50% 825 | -8/Garrison | Core integrity fell below 20% 836 | -8/Garrison | Discovered new exit (range 11) 837 | -8/Garrison | Destroyed by S-10 Pest with Light Assault Rifle Last Messages --------------- 00787_ Field strength at 1. 00788_ Stasis field depleted. 00794_ Beams of light sweep through the air. An alarm sounds. 00795_ Gravmag System destroyed. 00795_ Knocked back. 00795_ Beams of light sweep through the air. An alarm sounds. 00798_ Gravmag System severed. 00799_ Lgt. Nuclear Core destroyed. 00799_ Slug penetrates Wall. 00807_ Gravmag System severed. 00810_ Hvy. Assault Rifle destroyed. 00810_ Adv. Weight Redist. System severed. 00814_ Critical hit (Burn: +37). 00821_ S-10 Pest destroyed. 00821_ Dropped Med. Storage Unit. 00822_ S-10 Pest destroyed. 00826_ Penetrated by Slug. 00836_ EXIT=FOUND Map ----- +----------------------------------------------------+ | ????????????????????????????????????? | | ######??????????????????????????????? | | #??????????????????????????????? | | #??????????????????????????????? | | #??????????????????????????????? | | ## #??????????????????????????????? | | ?# #??????????????????????????????? | | ?# #??????????????????????????????? | | ?# #??????????????????????????????? | | ?# = #??????????????????????????????? | | ?# ! #??????????????????????????????? | | ## [ #??????????????????????????????? | | + %*#??????????????????????????????? | | +!= #??????????????????????????????? | | ## #??????????????????????????????? | | ?# #??????????????????????????????? | | ?# #??????????????????????????????? | | ?# #??????????????????????????????? | | ?# #????????"""######?????????????? | | ?# #????????? #?????????????? | | ?# #?????????? ??????????????? | | ?# #???????????# #???????????????? | | ?# ############# ########????????? | | ?# s s #????????? | | ?# c ## """"#?? | | ?# c@ "#?? | | ?################# #### ## """"#?? | | ?????????????????# #??# #????????? | | ?????????????????# #??# #????????? | | ????????????????? #??# #????????? | | ???????????????? #??# #????????? | | ???????????????######??# #????????? | | ???????????????????????# #????????? | | ???????????????????????# #????????? | | ???????????????????????# #????????? | | ???????????????????????# < #????????? | | ???????????????????????# #????????? | | ???????????????????????#####????????? | | ????????????????????????????????????? | | ????????????????????????????????????? | | ????????????????????????????????????? | | ????????????????????????????????????? | | ????????????????????????????????????? | | ????????????????????????????????????? | | ????????????????????????????????????? | | ????????????????????????????????????? | | ????????????????????????????????????? | | ????????????????????????????????????? | | | | | +----------------------------------------------------+ Best States ------------- Heat Dissipation 41 Energy Generation 14 Energy Capacity 250 Matter Stores 286 Matter Capacity 300 Sight Range 16 Terrain Scan Density 10 Additional Mass Support 9 Evasion (%) 62 Recoil Reduction 5 Item Schematics ----------------- None Robot Schematics ------------------ None Fabricated ------------ Nothing Repaired ---------- Nothing Studied --------- None Alien Tech Used ----------------- None Achievements -------------- None Challenges ------------ None Game ------ Seed DispersalMassWell Manual? 0 Play Time 00:07:26 Cumulative 52.2 hours Start 2025.12.18 @ 23:48:06 End 2025.12.18 @ 23:53:52 Sessions 1 Manual Loads 0 Difficulty Rogue Special Mode None Game No. 200 Rogue 200 Adventurer 0 Explorer 0 Win Type - Total 0 Types 0/0/0/0/0/0/0/0/0/0 Lore% 12 Gallery% 38 Achievement% 25 Wizard Run 0 Options --------- Layout 1 ASCII 0 Keyboard 1 Movement Vi Keybinds 0 Fullscreen 1 Font 16/SmallcapsGlow Map View 55x38 Zoom Use 0% Tactical HUD 1 Map Filters NONE Filters NONE Steam X RUN: 432c1fb5-5db2-4f45-b6a2-385a555af751